bitfinex/quotes_ETHUSD_20241215
["timestamp","ask_amount","ask_price","bid_price","bid_amount"]
[1734232055570,0.19237276,3882.5,3882.2,0.23643342]
[1734232055767,2.57554,3882.7,3882.2,0.23643342]
[1734232055968,0.19242947,3882.6,3882.3,0.7804]
[1734232056175,3.09337473,3883.0,3882.3,0.7804]
[1734232056504,0.19248381,3882.9,3882.3,0.7804]
[1734232056714,0.19248381,3882.8,3882.4,0.23549921]
[1734232056858,0.19248381,3882.7,3882.4,0.23549921]
[1734232057201,0.19248381,3882.6,3882.4,0.23549921]
[1734232057405,2.57537,3883.0,3882.4,0.23549921]
[1734232057613,0.19253283,3882.9,3882.4,0.23549921]
[1734232057915,5.23623515,3884.9,3882.4,0.23549921]
[1734232057916,0.19253283,3882.8,3882.5,1.01887713]
[1734232058207,2.57516,3883.3,3882.5,1.01887713]
[1734232058358,0.1925357,3883.2,3882.5,1.01887713]
[1734232058559,0.1925357,3883.1,3882.5,1.01887713]
[1734232058819,0.1925357,3883.0,3882.6,0.2080522]
[1734232059103,0.1925357,3882.9,3882.7,0.02996173]
[1734232059257,0.50812322,3883.1,3882.7,0.02996173]
[1734232059454,0.19249746,3883.0,3882.7,0.02996173]
[1734232059674,0.19249746,3882.9,3882.7,0.02996173]
[1734232059856,0.50812322,3883.1,3882.7,0.23796761]
[1734232060091,0.19250587,3883.0,3882.7,0.23796761]
[1734232060360,0.50812322,3883.1,3882.7,0.23796761]
[1734232060596,0.19244439,3883.0,3882.7,0.23796761]
[1734232061698,0.19240045,3882.9,3882.7,0.23796761]
[1734232062013,0.50812322,3883.1,3882.7,0.23796761]
[1734232062210,0.19239858,3883.0,3882.7,0.23796761]
[1734232062565,0.19239858,3883.0,3882.7,0.02996173]
[1734232062760,0.19239858,3882.9,3882.7,0.02996173]
[1734232062961,0.50812322,3883.1,3882.5,0.7804]
[1734232063182,0.19236148,3883.0,3882.8,0.02979168]
[1734232063414,0.19236148,3882.9,3882.5,0.7804]
[1734232063617,0.50812322,3883.1,3882.5,0.7804]
[1734232063822,0.19233335,3883.0,3882.5,0.7804]
[1734232064115,0.19233335,3882.9,3882.1,0.7804]
[1734232064259,2.57556,3882.7,3882.1,0.7804]
[1734232064468,1.56976811,3883.1,3882.1,0.7804]
[1734232064792,3.3573,3882.6,3882.1,0.7804]
[1734232065026,0.19228177,3882.5,3882.1,0.7804]
[1734232065879,0.19228177,3882.5,3881.8,0.8116]
[1734232066088,0.19228177,3882.4,3881.8,0.8116]
[1734232066271,0.7817,3882.6,3881.5,1.25037938]
[1734232066272,2.57588,3882.2,3881.5,2.06197938]
[1734232066611,0.19224751,3882.1,3881.5,1.00033449]
[1734232066977,0.19224751,3882.1,3881.6,0.02981764]
[1734232067597,2.76826521,3882.0,3881.6,0.02981764]
[1734232067788,2.57607,3881.9,3881.6,0.02981764]
[1734232070018,2.57613,3881.8,3881.6,0.02981764]
[1734232082640,3.36605,3882.1,3881.7,1.06164489]
[1734232082802,2.57595,3882.1,3881.7,1.25195114]
[1734232083136,2.57595,3882.1,3881.8,0.03094535]
[1734232083501,2.57595,3882.1,3881.5,1.87324489]
[1734232083698,2.57595,3882.1,3881.6,0.03094884]
[1734232092253,2.57601,3882.0,3881.6,0.03094884]
[1734232094621,3.08509686,3882.3,3881.6,0.03094884]
[1734232094959,2.57588,3882.2,3881.6,0.03094884]
[1734232095123,0.50925686,3882.3,3881.6,0.03094884]
[1734232095329,2.57593,3882.1,3881.6,0.03094884]
[1734232098472,2.57602,3882.0,3881.6,0.03094884]
[1734232098644,0.7649,3881.7,3881.6,0.03094884]
[1734232098967,0.7649,3881.7,3880.8,0.753]
[1734232099291,2.57625,3881.6,3880.8,0.753]
[1734232099562,2.57625,3881.6,3880.9,0.03098026]
[1734232100755,0.7649,3881.7,3880.9,0.03098026]
[1734232101065,0.18265449,3881.6,3880.9,0.03098026]
[1734232101563,2.57343066,3881.2,3881.0,0.0309781]
[1734232101935,2.5764,3881.4,3880.6,1.81464489]
[1734232102137,0.7649,3881.7,3880.8,1.06164489]
[1734232102343,0.51093423,3881.5,3880.9,0.03120734]
[1734232102599,0.51093423,3881.5,3880.8,1.06164489]
[1734232102763,2.57627,3881.6,3880.8,1.24310938]
[1734232102967,2.57633,3881.5,3880.9,0.03120734]
[1734232104228,2.57615,3881.8,3881.0,1.81464489]
[1734232104669,0.50372202,3881.7,3881.1,0.03133113]
[1734232106874,0.50372202,3881.7,3881.2,1.06164489]
[1734232107252,0.50372202,3881.7,3881.3,0.0313268]
[1734232107592,0.50372202,3881.7,3881.2,1.06164489]
[1734232107748,0.50372202,3881.7,3881.4,0.03132464]
[1734232108072,0.50372202,3881.7,3881.2,1.06164489]
[1734232108275,0.50372202,3881.7,3881.5,0.03132247]
[1734232108436,0.50372202,3881.7,3881.2,1.06164489]
[1734232108640,0.50372202,3881.7,3881.6,0.03132031]
[1734232108861,0.50372202,3881.7,3881.2,1.06164489]
[1734232109353,0.50372202,3881.7,3881.3,0.0313268]
[1734232109551,0.50372202,3881.7,3881.2,1.06164489]
[1734232109870,0.50372202,3881.7,3881.3,0.03156553]
[1734232110272,0.50372202,3881.7,3881.2,1.06164489]
[1734232110477,0.50372202,3881.7,3881.4,0.03156337]
[1734232110676,0.50372202,3881.7,3881.3,0.03156553]
[1734232110852,0.50372202,3881.7,3881.5,0.03156121]
[1734232111181,0.50372202,3881.7,3881.6,0.03155904]
[1734232111381,0.50372202,3881.7,3881.6,1.09320393]
[1734232111585,1.07578846,3882.2,3881.6,1.87044489]
[1734232111756,1.07578846,3882.2,3881.7,0.18704449]
[1734232111953,1.07578846,3882.4,3881.8,0.03155472]
[1734232112163,1.07578846,3882.4,3881.7,0.18704449]
[1734232112478,3.65154846,3882.4,3881.8,0.03143825]
[1734232112679,1.23981427,3882.3,3881.8,0.03143825]
[1734232112854,2.57576,3882.4,3881.7,0.18704449]
[1734232113175,2.57576,3882.4,3881.8,0.03143825]
[1734232113381,2.57582,3882.3,3881.8,0.03143825]
[1734232113891,2.57582,3882.3,3881.6,1.87044489]
[1734232114093,2.57582,3882.3,3881.9,0.03144923]
[1734232114276,2.57582,3882.3,3881.7,0.18704449]
[1734232114986,2.57582,3882.3,3881.8,0.03145139]
[1734232116096,0.51539354,3882.2,3881.8,0.03145139]
[1734232119196,0.804,3881.9,3881.8,0.03145139]
[1734232119398,2.53915101,3881.9,3881.8,0.03145139]
[1734232119606,2.53915101,3881.9,3880.9,0.7678]
[1734232119607,2.57612,3881.8,3880.9,0.7678]
[1734232119788,2.57631,3881.6,3880.9,0.7678]
[1734232119988,2.57631,3881.6,3881.0,0.03034375]
[1734232120295,1.07794561,3881.8,3881.0,0.03034375]
[1734232120462,2.57633,3881.5,3881.0,0.03034375]
[1734232120663,1.07794561,3881.8,3881.0,0.03034375]
[1734232120887,2.57643,3881.4,3881.0,0.03034375]
[1734232121262,2.57649,3881.3,3881.0,0.03034375]
[1734232121698,1.07794561,3881.8,3881.0,0.03034375]
[1734232121892,2.57652,3881.3,3881.0,0.03034375]
[1734232128908,2.57654,3881.2,3881.0,0.03034375]
[1734232129299,2.57682,3880.8,3880.6,0.7649]
[1734232129679,2.57687,3880.7,3880.3,0.7649]
[1734232129873,2.57687,3880.7,3880.4,0.89231656]
[1734232130205,2.57687,3880.7,3880.3,0.7649]
[1734232131680,0.7946,3881.1,3880.3,0.7649]
[1734232131880,2.57707,3880.4,3880.0,0.7649]
[1734232134882,2.57698,3880.5,3880.0,0.7649]
[1734232135221,2.57714,3880.3,3880.0,0.7649]
[1734232136110,3.08162798,3880.6,3880.2,1.06164489]
[1734232136420,2.57679,3880.8,3880.4,0.7649]
[1734232137621,0.52733015,3880.7,3880.4,0.7649]
[1734232138016,0.52733015,3880.7,3880.5,0.02994723]
[1734232139320,3.10419015,3880.7,3880.5,0.02994723]
[1734232143523,2.57653,3881.2,3880.5,0.02994723]
[1734232143697,2.57653,3881.2,3880.6,0.18564921]
[1734232143904,0.51609478,3881.1,3880.7,0.0305077]
[1734232144103,0.51609478,3881.1,3880.6,0.18564921]
[1734232144305,3.09268478,3881.1,3880.7,0.0305077]
[1734232144509,3.09268478,3881.1,3880.4,1.82654489]
[1734232144692,3.09268478,3881.1,3880.5,0.21316652]
[1734232145963,0.51609478,3881.1,3880.5,0.21316652]
[1734232146233,2.57644,3881.4,3880.8,1.06164489]
[1734232146430,2.57646,3881.3,3880.7,0.8242]
[1734232146806,2.57646,3881.3,3880.8,0.03034747]
[1734232147012,2.57646,3881.3,3880.8,0.22196671]
[1734232147206,2.57646,3881.3,3880.8,0.19161924]
[1734232147407,0.50450004,3881.5,3880.9,0.0303453]
[1734232147745,0.50450004,3881.5,3880.8,0.19161924]
[1734232148097,0.50450004,3881.5,3880.9,0.03017148]
[1734232148394,0.50450004,3881.5,3880.8,0.19161924]
[1734232148395,3.08082004,3881.5,3880.8,0.19161924]
[1734232148608,3.08082004,3881.5,3880.9,0.23791789]
[1734232148812,0.00602222,3881.6,3881.0,0.8242]
[1734232149335,0.00602222,3881.6,3881.1,0.03016715]
[1734232149535,2.58228222,3881.6,3881.1,0.03016715]
[1734232150035,0.00602222,3881.6,3881.1,0.03016715]
[1734232150345,0.00602222,3881.6,3881.3,0.8242]
[1734232150721,0.00602222,3881.6,3881.4,0.03008498]
[1734232151489,2.58230222,3881.6,3881.4,0.03008498]
[1734232151640,3.34460222,3881.6,3881.4,0.03008498]
[1734232151828,2.57635,3881.5,3881.0,0.8242]
[1734232157071,2.57635,3881.5,3881.1,0.02954419]
[1734232157444,2.57635,3881.5,3881.0,0.8242]
[1734232157856,2.57635,3881.5,3881.1,0.02954419]
[1734232158250,2.57635,3881.5,3881.0,0.8242]
[1734232158779,2.57635,3881.5,3881.1,0.02954419]
[1734232158937,2.57635,3881.5,3881.0,0.8242]
[1734232159275,2.57647,3881.3,3881.1,0.02954419]
[1734232159638,2.57647,3881.3,3881.0,0.8242]
[1734232160147,2.57647,3881.3,3881.1,0.02954419]
[1734232160353,2.57647,3881.3,3880.8,1.82974489]
[1734232160552,0.76832222,3881.6,3880.9,0.02954852]
[1734232160740,2.57666,3881.0,3880.5,0.7681]
[1734232160940,2.57666,3881.0,3880.6,0.02955502]
[1734232163243,0.7712,3881.1,3880.6,0.02955502]
[1734232163449,0.49184307,3881.5,3880.6,0.02955502]
[1734232163450,2.57651,3881.3,3880.6,1.09119991]
[1734232163843,0.50685343,3881.2,3880.6,1.09119991]
[1734232164207,0.50685343,3881.2,3880.6,1.2771299]
[1734232165848,3.08338343,3881.2,3880.6,1.2771299]
[1734232166400,0.50685343,3881.2,3880.9,0.7507]
[1734232166683,2.57637,3881.5,3881.0,0.02993058]
[1734232168648,0.50398,3881.4,3881.0,0.02993058]
[1734232169277,2.57637,3881.5,3881.0,0.02993058]
[1734232171547,3.08931468,3881.5,3881.0,0.02993058]
[1734232173949,3.08931468,3881.5,3880.9,0.7507]
[1734232174149,3.08931468,3881.5,3880.9,0.95052749]
[1734232175656,1.84274561,3881.8,3881.0,1.06164489]
[1734232175869,2.5762,3881.7,3881.1,0.7507]
[1734232176169,2.5762,3881.7,3881.1,0.78043628]
[1734232176350,2.5762,3881.7,3881.2,0.20419087]
[1734232176553,2.5762,3881.7,3881.3,0.02971448]
[1734232176750,2.5762,3881.7,3881.1,0.7507]
[1734232176955,2.5762,3881.7,3881.2,0.02971665]
[1734232181194,2.57626,3881.6,3881.2,0.02971665]
[1734232181999,2.57626,3881.6,3881.1,0.7507]
[1734232182300,2.57626,3881.6,3881.2,0.02965261]
[1734232182967,2.57626,3881.6,3881.1,0.7507]
[1734232183168,2.57626,3881.6,3881.2,0.0296759]
[1734232183484,1.59186257,3881.8,3881.2,0.0296759]
[1734232183802,2.57634,3881.5,3881.2,0.0296759]
[1734232184096,2.57634,3881.5,3880.9,0.7507]
[1734232184405,2.57634,3881.5,3880.9,1.05842312]
[1734232184588,2.57634,3881.5,3881.0,0.02968023]
[1734232184768,3.65413561,3881.7,3881.0,0.02968023]
[1734232185102,1.23910253,3881.6,3881.0,0.02968023]
[1734232188366,2.31704814,3881.6,3881.0,0.02968023]
[1734232189408,1.23983068,3881.5,3881.1,0.89364664]
[1734232189569,1.07794561,3881.6,3881.2,0.02965844]
[1734232189896,2.31778819,3881.6,3881.0,0.32287045]
[1734232190063,2.31778819,3881.6,3881.3,0.02965628]
[1734232190267,2.31778819,3881.6,3881.0,0.32287045]
[1734232190466,2.31778819,3881.6,3881.4,0.02965411]
[1734232190698,2.31778819,3881.6,3880.9,2.1373794]
[1734232190901,2.31778819,3881.6,3881.5,0.02965195]
[1734232191105,2.31778819,3881.6,3880.9,2.1373794]
[1734232191288,2.31778819,3881.6,3881.5,0.02965195]
[1734232191492,2.31778819,3881.6,3880.9,1.82965628]
[1734232191700,2.31778819,3881.6,3881.5,0.02965195]
[1734232191900,2.31778819,3881.6,3880.9,1.82965628]
[1734232192107,2.31778819,3881.6,3881.5,0.02965195]
[1734232192697,2.31778819,3881.6,3880.9,1.82965628]
[1734232192908,2.31778819,3881.6,3881.0,2.23448578]
[1734232193104,2.31778819,3881.6,3881.1,2.23448578]
[1734232193406,2.31778819,3881.6,3881.2,0.92345275]
[1734232193582,1.07794561,3881.6,3881.2,0.02965844]
[1734232193909,2.31809671,3881.6,3880.9,1.82965628]
[1734232194103,2.31809671,3881.6,3881.3,0.02965628]
[1734232194307,2.31809671,3881.6,3881.1,1.06164489]
[1734232194507,3.65413561,3881.7,3881.4,0.79165411]
[1734232194804,3.65413561,3881.7,3881.5,0.02965195]
[1734232194805,1.24026691,3881.6,3881.5,0.02965195]
[1734232198022,1.2402663,3881.6,3881.5,0.02965195]
[1734232198402,3.65413561,3881.7,3881.5,0.02965195]
[1734232198717,3.65413561,3881.7,3881.4,0.762]
[1734232200337,3.65413561,3881.7,3881.1,1.06164489]
[1734232200663,3.81644077,3881.6,3881.2,0.89368826]
[1734232200957,2.57625,3881.6,3881.2,0.0295071]
[1734232207046,2.57632,3881.5,3881.2,0.0295071]
[1734232210664,0.7939,3881.3,3881.2,0.0295071]
[1734232210884,3.64923806,3881.3,3880.5,1.07895628]
[1734232211017,2.57675,3880.9,3880.6,2.235152]
[1734232211210,1.07884485,3881.1,3880.4,1.07895628]
[1734232211416,1.07884485,3881.1,3880.5,2.23477273]
[1734232211631,2.57666,3881.0,3880.6,2.23477273]
[1734232211831,2.57666,3881.0,3880.4,2.14060117]
[1734232212032,2.57666,3881.0,3880.5,2.23481186]
[1734232212238,2.57666,3881.0,3880.6,0.89392474]
[1734232212434,2.57666,3881.0,3880.4,2.14060117]
[1734232212771,2.57666,3881.0,3880.5,2.23449148]
[1734232212949,2.57666,3881.0,3880.4,1.06164489]
[1734232212950,2.57666,3881.0,3880.6,0.89379659]
[1734232213137,2.57666,3881.0,3880.4,1.06164489]
[1734232213314,2.57666,3881.0,3880.5,2.23418515]
[1734232213514,2.57666,3881.0,3880.4,1.36120276]
[1734232213757,2.57666,3881.0,3880.5,0.8936729]
[1734232213911,2.57666,3881.0,3880.4,1.36120276]
[1734232214110,1.07884485,3881.1,3880.6,1.06164489]
[1734232214335,2.15296973,3881.5,3880.5,0.89368411]
[1734232214336,1.07884485,3881.4,3881.0,1.06164489]
[1734232214520,2.5764,3881.4,3881.0,1.06164489]
[1734232215321,3.65510485,3881.6,3881.2,1.06164489]
[1734232215517,2.57626,3881.6,3881.2,1.06164489]
[1734232216552,2.57626,3881.6,3880.9,1.90115628]
[1734232216553,2.57626,3881.6,3881.0,1.06164489]
[1734232216752,2.57626,3881.6,3881.1,0.89339066]
[1734232217048,2.57626,3881.6,3881.0,1.54231732]
[1734232217253,2.57626,3881.6,3881.1,0.92328314]
[1734232217552,2.57626,3881.6,3881.1,0.0298828]
[1734232219255,2.57626,3881.6,3881.2,1.06164489]
[1734232219419,2.57626,3881.6,3881.3,0.02987847]
[1734232219614,2.57626,3881.6,3881.2,1.06164489]
[1734232219823,2.57626,3881.6,3881.3,0.02987847]
[1734232220016,1.07884485,3881.7,3881.2,1.06164489]
[1734232220242,1.07884485,3881.7,3881.3,0.02987847]
[1734232220441,2.31876903,3881.7,3881.2,1.06164489]
[1734232220616,2.31876903,3881.7,3881.3,0.02987847]
[1734232220826,4.17496115,3881.8,3881.2,1.06164489]
[1734232221163,1.23993937,3881.7,3881.3,0.02987847]
[1734232221554,4.17496115,3881.8,3881.2,1.06164489]
[1734232221761,1.23994672,3881.7,3881.4,0.02987631]
[1734232222050,1.59881115,3881.8,3881.0,1.54231732]
[1734232222051,2.57626,3881.6,3881.0,1.06164489]
[1734232222353,2.57626,3881.6,3881.1,2.52972964]
[1734232222553,2.57626,3881.6,3881.2,0.89337981]
[1734232222731,2.57626,3881.6,3881.2,0.029869]
[1734232224743,2.57626,3881.6,3881.2,1.09151389]
[1734232228043,1.59881115,3881.8,3881.2,0.029869]
[1734232228251,0.7904,3881.6,3881.2,0.029869]
[1734232228448,3.10897941,3881.6,3880.9,0.8222]
[1734232228716,1.23968612,3881.5,3881.0,0.02987333]
[1734232228885,2.5764,3881.4,3881.0,0.02987333]
[1734232236228,0.7904,3881.6,3881.1,1.06164489]
[1734232236527,0.7904,3881.6,3881.2,0.02996797]
[1734232236670,3.36666,3881.6,3881.2,0.02996797]
[1734232240128,2.57633,3881.5,3881.2,0.02996797]
[1734232240333,2.5764,3881.4,3881.2,0.02996797]
[1734232242494,2.5764,3881.4,3880.9,1.30287243]
[1734232242706,2.5764,3881.4,3881.3,0.02996249]
[1734232243005,2.5764,3881.4,3880.9,0.8222]
[1734232243331,2.5764,3881.4,3881.0,1.21215417]
[1734232243483,2.5764,3881.4,3881.0,0.34879798]
[1734232249187,0.7904,3881.6,3881.1,0.89334697]
[1734232249398,3.36666,3881.6,3881.0,0.34879798]
[1734232249723,3.36666,3881.6,3881.1,0.92333957]
[1734232249927,3.36666,3881.6,3881.1,0.0299858]
[1734232252421,2.57634,3881.5,3881.1,0.0299858]
[1734232258105,2.57634,3881.5,3881.2,0.89355825]
[1734232258310,1.07884485,3881.7,3881.3,0.02998147]
[1734232258521,4.89511217,3881.7,3881.0,0.31882899]
[1734232258699,3.65504485,3881.7,3881.4,0.0299793]
[1734232259028,3.65504485,3881.7,3880.9,1.07895628]
[1734232259233,3.65504485,3881.7,3881.5,0.02997714]
[1734232259234,1.24004273,3881.6,3881.5,0.02997714]
[1734232260034,1.24004273,3881.6,3880.9,1.07895628]
[1734232260237,2.31888758,3881.6,3881.5,0.02897822]
[1734232260830,2.31888758,3881.6,3881.0,1.07895628]
[1734232261030,3.65504485,3881.7,3881.5,0.02897822]
[1734232261232,1.24065204,3881.6,3881.0,1.07895628]
[1734232261528,1.24065204,3881.6,3881.1,2.23480268]
[1734232261732,1.24065204,3881.6,3881.2,2.23480268]
[1734232261929,1.24065204,3881.6,3881.3,0.89392107]
[1734232262130,1.24065204,3881.6,3881.2,0.02898471]
[1734232262131,2.31949689,3881.6,3881.2,0.02898471]
[1734232262307,2.31949689,3881.6,3881.4,0.02898038]
[1734232262505,2.31949689,3881.6,3881.0,1.07895628]
[1734232262709,2.31949689,3881.6,3881.1,2.2638027]
[1734232262904,2.31949689,3881.6,3881.2,0.89392633]
[1734232263221,2.5762,3881.7,3881.3,0.92294961]
[1734232263222,3.65504485,3881.7,3881.3,0.92294961]
[1734232263417,1.24062058,3881.6,3881.3,0.02902328]
[1734232263932,0.19271929,3881.5,3881.4,0.02902112]
[1734232264344,0.19271929,3881.5,3881.0,1.47740871]
[1734232264544,3.65504485,3881.7,3881.4,0.02902112]
[1734232264719,1.43372033,3881.6,3881.0,1.07895628]
[1734232264918,0.19277951,3881.5,3881.1,2.23477468]
[1734232265119,0.19277951,3881.5,3881.0,1.07895628]
[1734232265120,0.19278203,3881.4,3881.2,2.23477468]
[1734232265315,3.65504485,3881.7,3881.3,0.89390987]
[1734232265521,1.43375501,3881.6,3881.0,1.07895628]
[1734232265717,0.19278903,3881.5,3881.1,2.61065659]
[1734232265952,0.19278903,3881.4,3881.2,2.23475303]
[1734232266109,1.07884485,3881.7,3881.3,0.89390121]
[1734232266311,1.6147273,3881.9,3881.6,1.06164489]
[1734232266312,1.07884485,3881.9,3881.6,1.06164489]
[1734232266617,4.72883973,3882.2,3881.7,2.23398586]
[1734232266618,0.19281478,3881.8,3881.7,2.23398586]
[1734232266818,0.19281478,3881.8,3881.7,3.8949329]
[1734232267018,0.19281478,3881.8,3881.7,4.97388918]
[1734232267446,1.6147273,3882.6,3881.7,7.32611861]
[1734232267447,1.07884485,3882.6,3881.7,7.32611861]
[1734232267659,0.19271688,3882.5,3882.3,1.06164489]
[1734232267861,0.19271688,3882.4,3882.3,1.06164489]
[1734232268220,0.19272512,3882.4,3882.3,1.06164489]
[1734232268610,0.19272512,3882.4,3882.1,1.06164489]
[1734232268807,2.57553,3882.7,3882.1,1.06164489]
[1734232268808,0.19272512,3882.3,3882.1,1.06164489]
[1734232269023,0.19272512,3882.2,3882.1,1.06164489]
[1734232270614,0.19272512,3882.6,3882.1,1.06164489]
[1734232270828,0.1924989,3882.5,3882.1,1.06164489]
[1734232271063,0.1924989,3882.4,3882.1,1.06164489]
[1734232271217,2.57553,3882.7,3882.1,1.06164489]
[1734232271415,0.51854179,3882.8,3882.1,1.06164489]
[1734232271416,2.76810604,3882.6,3882.1,1.06164489]
[1734232271752,0.19249604,3882.5,3882.1,1.06164489]
[1734232271938,0.19249604,3882.4,3882.1,1.06164489]
[1734232272138,0.19249604,3882.3,3882.1,1.06164489]
[1734232272338,0.19249604,3882.2,3882.1,1.06164489]
[1734232272657,0.19240062,3882.5,3882.1,1.06164489]
[1734232272875,0.19240432,3882.4,3882.1,1.06164489]
[1734232273071,0.19240432,3882.3,3882.1,1.06164489]
[1734232273355,2.57561,3882.6,3882.1,1.06164489]
[1734232273519,0.19238679,3882.5,3882.1,1.06164489]
[1734232273720,0.19238679,3882.4,3882.1,1.06164489]
[1734232273958,2.57561,3882.6,3882.1,1.06164489]
[1734232274122,0.19239221,3882.5,3882.1,1.06164489]
[1734232274324,0.19239221,3882.4,3882.1,1.06164489]
[1734232274667,2.57561,3882.6,3882.1,1.06164489]
[1734232274870,0.19236091,3882.5,3882.1,1.06164489]
[1734232275053,0.19236091,3882.4,3882.1,1.06164489]
[1734232275262,3.09403179,3882.8,3882.1,1.06164489]
[1734232275498,0.1923372,3882.7,3882.1,1.06164489]
[1734232275750,0.1923372,3882.6,3882.1,1.06164489]
[1734232275954,0.1923372,3882.5,3882.1,1.06164489]
[1734232276165,0.1923372,3882.4,3882.1,1.06164489]
[1734232276453,2.5756,3882.6,3882.1,1.06164489]
[1734232277072,2.5756,3882.6,3882.2,0.02780238]
[1734232277579,2.5756,3882.6,3882.1,1.06164489]
[1734232278540,0.51854179,3882.8,3881.4,1.08000673]
[1734232278541,0.51854179,3882.8,3882.3,1.06164489]
[1734232278741,3.09401179,3882.8,3882.3,1.06164489]
[1734232279835,2.57553,3882.7,3882.1,1.06164489]
[1734232280036,0.51854179,3882.8,3881.9,1.06164489]
[1734232280279,2.57574,3882.4,3882.2,0.02770928]
[1734232280432,2.57579,3882.3,3881.9,1.06164489]
[1734232280637,2.57579,3882.3,3881.7,1.06164489]
[1734232280839,2.57588,3882.2,3882.0,0.0277136]
[1734232281080,2.57597,3882.1,3881.7,1.06164489]
[1734232281372,1.59738664,3882.8,3881.5,1.06164489]
[1734232281540,2.57606,3881.9,3881.5,1.06164489]
[1734232283560,2.57575,3882.4,3881.7,1.06164489]
[1734232283874,2.57575,3882.4,3881.9,1.06164489]
[1734232284432,2.57556,3882.7,3881.7,1.06164489]
[1734232284775,2.57594,3882.1,3881.7,1.06164489]
[1734232287860,2.57579,3882.3,3881.7,1.06164489]
[1734232288064,2.57579,3882.3,3881.9,1.06164489]
[1734232288837,3.32564,3882.6,3881.9,1.06164489]
[1734232289061,0.51854179,3882.8,3882.3,1.06164489]
[1734232289239,2.57543,3882.9,3882.4,0.7943]
[1734232289735,2.57547,3882.8,3882.4,0.7943]
[1734232292462,2.57553,3882.7,3882.4,0.7943]
[1734232292667,2.57553,3882.7,3882.1,1.85594489]
[1734232293169,2.57553,3882.7,3882.2,0.02773839]
[1734232294350,1.254538,3883.0,3882.2,0.02773839]
[1734232294351,2.5756,3882.6,3882.2,0.02773839]
[1734232294751,2.5756,3882.6,3882.1,1.85594489]
[1734232295284,2.5756,3882.6,3882.2,0.02751146]
[1734232295796,2.5756,3882.6,3882.1,1.85594489]
[1734232296383,2.5756,3882.6,3882.2,0.02751146]
[1734232296550,2.57576,3882.4,3882.2,0.02751146]
[1734232296750,2.57576,3882.4,3882.1,0.7943]
[1734232296981,2.57576,3882.4,3882.3,0.02750929]
[1734232297180,2.57576,3882.4,3882.2,0.02751146]
[1734232297381,2.57576,3882.4,3882.3,0.02750929]
[1734232297803,2.57576,3882.4,3882.1,0.7943]
[1734232298103,2.57576,3882.4,3882.3,0.02750929]
[1734232298297,2.57576,3882.4,3882.2,0.02751146]
[1734232298456,2.57576,3882.4,3882.1,0.7943]
[1734232298859,2.57576,3882.4,3882.2,0.02751146]
[1734232299288,2.57576,3882.4,3882.1,0.7943]
[1734232299681,2.57576,3882.4,3882.2,0.02751146]
[1734232300195,2.57576,3882.4,3882.1,0.7943]
[1734232300677,2.57576,3882.4,3882.2,0.02751146]
[1734232301074,2.57576,3882.4,3882.1,0.7943]
[1734232301390,2.57557,3882.7,3882.3,1.06164489]
[1734232301786,2.5754,3882.9,3882.3,1.06164489]
[1734232302287,2.57546,3882.8,3882.4,0.02754204]
[1734232302486,2.57546,3882.8,3882.3,1.06164489]
[1734232302805,2.57546,3882.8,3882.4,0.02747804]
[1734232303172,2.57546,3882.8,3882.3,1.06164489]
[1734232303368,2.57546,3882.8,3882.3,1.24723938]
[1734232303574,2.57546,3882.8,3882.4,0.02747804]
[1734232306303,0.504538,3883.0,3882.4,0.02747804]
[1734232306515,2.57556,3882.7,3882.3,1.06164489]
[1734232306818,2.57556,3882.7,3882.4,0.0272744]
[1734232307110,2.57556,3882.7,3882.3,1.06164489]
[1734232307410,2.57556,3882.7,3882.4,0.0272744]
[1734232307813,2.57556,3882.7,3882.3,1.24723938]
[1734232308037,2.57556,3882.7,3882.5,0.02728969]
[1734232308323,2.57556,3882.7,3882.6,0.02728753]
[1734232308486,2.57556,3882.7,3882.3,1.06164489]
[1734232308816,2.57556,3882.7,3882.4,0.02729185]
[1734232314940,2.57547,3882.8,3882.4,0.02729185]
[1734232318942,0.504538,3883.0,3882.4,1.27862041]
[1734232324254,0.504538,3883.0,3882.4,1.08893674]
[1734232325946,3.079878,3883.0,3882.4,1.08893674]
[1734232328222,0.504538,3883.0,3882.4,0.02729185]
[1734232328523,2.5756,3882.6,3882.0,1.83560673]
[1734232328722,2.57569,3882.5,3882.1,0.91968587]
[1734232328943,2.57569,3882.5,3882.1,0.02700747]
[1734232329157,2.57579,3882.3,3882.1,0.02700747]
[1734232329332,2.57579,3882.3,3881.6,1.08000673]
[1734232329549,2.57579,3882.3,3881.7,3.32063341]
[1734232329746,2.57579,3882.3,3881.8,0.89278896]
[1734232329944,2.57612,3881.8,3881.4,1.83560673]
[1734232330261,3.36111,3881.7,3881.5,0.89295958]
[1734232330468,2.57639,3881.4,3881.1,1.83560673]
[1734232330638,2.57639,3881.4,3881.2,0.89296984]
[1734232330833,2.57639,3881.4,3881.1,0.7556]
[1734232332446,2.57639,3881.4,3881.0,1.06164489]
[1734232333236,0.50464266,3881.3,3881.0,1.06164489]
[1734232333762,3.08110266,3881.3,3880.8,1.06164489]
[1734232333933,3.08110266,3881.3,3880.8,1.37391892]
[1734232334933,3.08110266,3881.3,3881.0,1.06164489]
[1734232336183,2.57654,3881.2,3880.7,0.22548869]
[1734232336340,0.50464266,3881.3,3880.7,1.06164489]
[1734232336341,2.57662,3881.1,3880.7,1.06164489]
[1734232336725,2.57667,3881.0,3880.7,1.06164489]
[1734232337178,2.57667,3881.0,3880.8,0.02439184]
[1734232337673,2.57667,3881.0,3880.7,1.06164489]
[1734232337854,2.57667,3881.0,3880.9,0.02438968]
[1734232338172,2.96408127,3881.0,3880.9,0.02519736]
[1734232338353,0.38741127,3881.0,3880.4,1.06164489]
[1734232338557,2.57682,3880.8,3880.5,0.02520602]
[1734232339069,2.57666,3881.0,3880.5,0.02520602]
[1734232341065,0.7928,3881.2,3880.5,0.02520602]
[1734232341275,2.57673,3880.9,3880.5,0.02520602]
[1734232342472,0.7928,3881.2,3880.5,0.02520602]
[1734232342473,2.57679,3880.8,3880.5,0.02520602]
[1734232343160,0.7928,3881.2,3880.5,0.02520602]
[1734232343364,2.57686,3880.7,3880.5,0.02520602]
[1734232344975,3.36935,3881.2,3880.6,1.06164489]
[1734232345144,3.36935,3881.2,3880.8,1.06164489]
[1734232345345,2.57655,3881.2,3880.8,1.81914489]
[1734232345676,2.57655,3881.2,3880.9,0.02519854]
[1734232347249,0.50464266,3881.3,3880.9,0.02519854]
[1734232347448,3.33852,3882.3,3881.1,1.06164489]
[1734232347659,2.57613,3881.8,3881.2,0.7575]
[1734232347864,0.19201387,3881.7,3881.2,0.7575]
[1734232348069,0.19201387,3881.7,3881.3,0.02619669]